[Event "Portugal Open 2019"]
[Site "Lisbon"]
[Date "2019.02.03"]
[Round "3.14"]
[White "Garcia Dorado, Alberto"]
[Black "Iniyan, P."]
[Result "0-1"]
[ECO "E68"]
[WhiteElo "2223"]
[BlackElo "2480"]
[Annotator "RC"]
[PlyCount "74"]
[EventDate "2019.01.25"]
[EventType "swiss"]
[EventCountry "POR"]
[SourceTitle "playchess.com"]
[Source "ChessBase"]
[SourceQuality "1"]
[TimeControl "5400+30"]

1. d4 {[%emt 0:04:32]} Nf6 {[%emt 0:00:06]} 2. c4 {[%emt 0:00:30]} g6 {[%emt 0:00:06]} 3. g3 {[%emt 0:00:18]} Bg7 {[%emt 0:00:05]} 4. Bg2 {[%emt 0:00:13]} O-O {[%emt 0:00:05]} 5. Nf3 {[%emt 0:00:14]} d6 {[%emt 0:00:04]} 6. Nc3 {[%emt 0:01:08]} Nbd7 {[%emt 0:00:06]} 7. O-O {[%emt 0:00:17]} e5 {[%emt 0:00:03]} 8. e4 {[%emt 0:00:12]} exd4 {[%emt 0:00:04]} 9. Nxd4 {[%emt 0:00:10]} Re8 {[%emt 0:00:04]} 10. Re1 {[%emt 0:01:33]} Ng4 {[%emt 0:00:37]} 11. h3 {[%emt 0:02:48]} Nge5 {[%emt 0:00:06]} 12. b3 {[%emt 0:09:33]} Nc5 {[%emt 0:00:39]} 13. Be3 {[%emt 0:00:40]} a5 {[%emt 0:03:51]} 14. Bf1 {[%emt 0:23:25]} Bd7 {[%emt 0:02:34]} 15. f4 {[%emt 0:19:23]} Nc6 {[%emt 0:00:18]} 16. Bf2 {[%emt 0:03:26]} f5 {[%emt 0:02:15]} 17. e5 {[%emt 0:01:50]} Nxd4 {[%emt 0:03:34]} 18. Bxd4 {[%emt 0:01:20]} Ne6 {[%emt 0:00:05]} 19. Bf2 {[%emt 0:02:51]} Bc6 {[%emt 0:12:32]} 20. Bg2 {[%emt 0:04:12]} Bxg2 {[%emt 0:03:02]} 21. Kxg2 {[%emt 0:00:09]} dxe5 {[%emt 0:00:07]} 22. fxe5 {[%emt 0:01:22]} Ng5 {[%emt 0:00:09]} 23. Qxd8 {[%emt 0:06:46]} Raxd8 {[%emt 0:00:06]} 24. Rad1 {[%emt 0:01:18]} Rxd1 {[%emt 0:01:15]} 25. Nxd1 {[%emt 0:03:21]} Rxe5 {[%emt 0:02:29]} 26. Rxe5 {[%emt 0:00:49]} Bxe5 {[%emt 0:00:07]} 27. Be1 {[%emt 0:00:06]} b6 {[%emt 0:00:37]} 28. c5 {[%emt 0:00:11]} Ne4 {[%emt 0:01:21]} 29. cxb6 {[%emt 0:00:14]} cxb6 {[%emt 0:00:04]} 30. g4 {[%emt 0:03:35]} Kf7 {[%emt 0:00:50]} 31. gxf5 {[%emt 0:00:14]} gxf5 {[%emt 0:00:07]} 32. Ne3 {[%emt 0:03:57]} Ke6 {[%emt 0:00:06]} 33. Nc4 {[%emt 0:00:36]} Bd4 {[%emt 0:00:42]} 34. Bh4 {[%emt 0:00:49]} Nc3 {[%emt 0:09:20]} 35. a4 {[%emt 0:02:58]} Kd5 {[%emt 0:00:22]} 36. Kf3 {[%emt 0:00:12]} Nxa4 {[%emt 0:01:56]} 37. Nxa5 {[%emt 0:00:49]} Nc5 {[%emt 0:00:06]} 0-1

[Event "Portugal Open 2019"]
[Site "Lisbon"]
[Date "2019.02.03"]
[Round "3.15"]
[White "Bilguun, Sumiya"]
[Black "Sorensen, Hampus"]
[Result "1-0"]
[ECO "C50"]
[WhiteElo "2471"]
[BlackElo "2289"]
[Annotator "RC"]
[PlyCount "181"]
[EventDate "2019.01.25"]
[EventType "swiss"]
[EventCountry "POR"]
[SourceTitle "playchess.com"]
[Source "ChessBase"]
[SourceQuality "1"]
[TimeControl "5400+30"]

1. e4 {[%emt 0:00:00]} e5 {[%emt 0:00:08]} 2. Bc4 {[%emt 0:00:00]} Nf6 {[%emt 0:04:05]} 3. d3 {[%emt 0:00:00]} Nc6 {[%emt 0:01:37]} 4. Nf3 {[%emt 0:00:00]} Bc5 {[%emt 0:00:19]} 5. O-O {[%emt 0:00:36]} a6 {[%emt 0:00:36]} 6. c3 {[%emt 0:00:58]} Ba7 {[%emt 0:01:14]} 7. Bb3 {[%emt 0:06:59]} O-O {[%emt 0:01:47]} 8. Bg5 {[%emt 0:06:08]} h6 {[%emt 0:00:42]} 9. Bh4 {[%emt 0:00:35]} d6 {[%emt 0:00:39]} 10. Nbd2 {[%emt 0:02:24]} g5 {[%emt 0:02:39]} 11. Bg3 {[%emt 0:03:51]} Re8 {[%emt 0:10:53]} 12. Nc4 {[%emt 0:04:49]} Ne7 {[%emt 0:03:14]} 13. d4 {[%emt 0:07:08]} Nxe4 {[%emt 0:07:14]} 14. Ncxe5 {[%emt 0:27:32]} dxe5 {[%emt 0:25:03]} 15. Nxe5 {[%emt 0:00:10]} Be6 {[%emt 0:03:29]} 16. Bxe6 {[%emt 0:04:59]} fxe6 {[%emt 0:00:33]} 17. Qg4 {[%emt 0:00:08]} Nd6 {[%emt 0:01:31]} 18. Qxe6+ {[%emt 0:00:29]} Kg7 {[%emt 0:01:18]} 19. Ng4 {[%emt 0:21:38]} Ng8 {[%emt 0:09:11]} 20. Be5+ {[%emt 0:00:15]} Kh7 {[%emt 0:00:20]} 21. Qb3 {[%emt 0:00:35]} Qc8 {[%emt 0:05:39]} 22. Qd1 {[%emt 0:00:35]} Rf8 {[%emt 0:02:31]} 23. f4 {[%emt 0:03:27]} Qe6 {[%emt 0:02:09]} 24. Qd3+ {[%emt 0:03:06]} Qg6 {[%emt 0:01:24]} 25. Qf3 {[%emt 0:02:59]} Rf7 {[%emt 0:02:27]} 26. Bxd6 {[%emt 0:01:49]} cxd6 {[%emt 0:02:15]} 27. f5 {[%emt 0:00:07]} Qh5 {[%emt 0:00:21]} 28. Rae1 {[%emt 0:00:32]} Raf8 {[%emt 0:01:02]} 29. h3 {[%emt 0:01:20]} Kh8 {[%emt 0:02:44]} 30. Re6 {[%emt 0:01:04]} Nf6 {[%emt 0:03:34]} 31. Rfe1 {[%emt 0:00:20]} Bb6 {[%emt 0:01:54]} 32. Rxd6 {[%emt 0:00:44]} Bc7 {[%emt 0:00:09]} 33. Rde6 {[%emt 0:00:15]} Nxg4 {[%emt 0:00:47]} 34. hxg4 {[%emt 0:00:09]} Qh2+ {[%emt 0:00:25]} 35. Kf2 {[%emt 0:00:51]} Kh7 {[%emt 0:02:43]} 36. Ke2 {[%emt 0:00:37]} Qf4 {[%emt 0:00:26]} 37. Qh3 {[%emt 0:00:37]} Rf6 {[%emt 0:00:05]} 38. Kd1 {[%emt 0:00:20]} Bd6 {[%emt 0:00:52]} 39. Kc2 {[%emt 0:00:44]} Kg7 {[%emt 0:00:43]} 40. R6e3 {[%emt 0:00:15]} Qh2 {[%emt 0:00:20]} 41. Qxh2 {[%emt 0:00:06]} Bxh2 {[%emt 0:00:02]} 42. g3 {[%emt 0:00:05]} h5 {[%emt 0:00:19]} 43. Rh1 {[%emt 0:00:29]} hxg4 {[%emt 0:00:15]} 44. Rxh2 {[%emt 0:00:16]} Rxf5 {[%emt 0:00:01]} 45. Rhe2 {[%emt 0:00:50]} Rf3 {[%emt 0:00:39]} 46. d5 {[%emt 0:00:39]} R8f5 {[%emt 0:01:09]} 47. c4 {[%emt 0:00:21]} b5 {[%emt 0:00:01]} 48. d6 {[%emt 0:00:57]} bxc4 {[%emt 0:01:13]} 49. d7 {[%emt 0:00:50]} Rxe3 {[%emt 0:00:26]} 50. Rxe3 {[%emt 0:00:16]} Rd5 {[%emt 0:00:01]} 51. Re5 {[%emt 0:00:29]} Rxd7 {[%emt 0:00:29]} 52. Rxg5+ {[%emt 0:00:04]} Kf6 {[%emt 0:00:07]} 53. Rxg4 {[%emt 0:00:04]} Rc7 {[%emt 0:00:39]} 54. Kc3 {[%emt 0:00:08]} Ke5 {[%emt 0:00:03]} 55. Rg6 {[%emt 0:00:25]} a5 {[%emt 0:00:27]} 56. Rg5+ {[%emt 0:00:05]} Kd6 {[%emt 0:00:01]} 57. Rxa5 {[%emt 0:00:35]} Rg7 {[%emt 0:00:03]} 58. Kxc4 {[%emt 0:00:10]} Rxg3 {[%emt 0:00:02]} 59. b4 {[%emt 0:00:19]} Kc6 {[%emt 0:00:04]} 60. Rc5+ {[%emt 0:00:32]} Kb6 {[%emt 0:00:08]} 61. a4 {[%emt 0:00:25]} Rg4+ {[%emt 0:00:37]} 62. Kb3 {[%emt 0:00:02]} Rg3+ {[%emt 0:00:18]} 63. Rc3 {[%emt 0:00:01]} Rg5 {[%emt 0:00:18]} 64. Rh3 {[%emt 0:00:10]} Rg6 {[%emt 0:00:04]} 65. a5+ {[%emt 0:00:08]} Ka6 {[%emt 0:00:18]} 66. Ka4 {[%emt 0:00:12]} Rf6 {[%emt 0:00:25]} 67. b5+ {[%emt 0:00:09]} Ka7 {[%emt 0:00:02]} 68. Rh7+ {[%emt 0:00:11]} Ka8 {[%emt 0:00:08]} 69. a6 {[%emt 0:00:06]} Rf1 {[%emt 0:00:05]} 70. Ka5 {[%emt 0:00:11]} Rf5 {[%emt 0:00:29]} 71. Re7 {[%emt 0:00:10]} Kb8 {[%emt 0:00:23]} 72. Rd7 {[%emt 0:00:21]} Rh5 {[%emt 0:00:19]} 73. Kb6 {[%emt 0:00:09]} Rh6+ {[%emt 0:00:26]} 74. Kc5 {[%emt 0:00:06]} Rh5+ {[%emt 0:00:07]} 75. Rd5 {[%emt 0:00:21]} Rh1 {[%emt 0:00:51]} 76. b6 {[%emt 0:00:39]} Rc1+ {[%emt 0:00:19]} 77. Kb5 {[%emt 0:00:32]} Rb1+ {[%emt 0:00:32]} 78. Kc6 {[%emt 0:00:08]} Rc1+ {[%emt 0:00:06]} 79. Rc5 {[%emt 0:00:11]} Rb1 {[%emt 0:00:29]} 80. Re5 {[%emt 0:00:23]} Rc1+ {[%emt 0:00:10]} 81. Kd5 {[%emt 0:00:14]} Rd1+ {[%emt 0:00:09]} 82. Kc4 {[%emt 0:00:11]} Rc1+ {[%emt 0:00:08]} 83. Kd3 {[%emt 0:00:12]} Rd1+ {[%emt 0:00:06]} 84. Ke2 {[%emt 0:00:08]} Rd8 {[%emt 0:00:03]} 85. Re7 {[%emt 0:00:07]} Rh8 {[%emt 0:00:10]} 86. Kd3 {[%emt 0:00:26]} Rh3+ {[%emt 0:00:59]} 87. Kd4 {[%emt 0:00:04]} Rh4+ {[%emt 0:00:02]} 88. Kd5 {[%emt 0:00:06]} Rh5+ {[%emt 0:00:07]} 89. Kd6 {[%emt 0:00:03]} Rh6+ {[%emt 0:00:06]} 90. Re6 {[%emt 0:00:04]} Rh8 {[%emt 0:00:07]} 91. Kd7 {[%emt 0:00:03]} 1-0

[Event "Portugal Open 2019"]
[Site "Lisbon"]
[Date "2019.02.03"]
[Round "3.22"]
[White "Haug, Johannes"]
[Black "Sousa, Ludy Helsio Paulo"]
[Result "0-1"]
[ECO "E67"]
[WhiteElo "2403"]
[BlackElo "2169"]
[Annotator "RC"]
[PlyCount "94"]
[EventDate "2019.01.25"]
[EventType "swiss"]
[EventCountry "POR"]
[SourceTitle "playchess.com"]
[Source "ChessBase"]
[SourceQuality "1"]
[TimeControl "5400+30"]

1. d4 {[%emt 0:00:00]} Nf6 {[%emt 0:00:14]} 2. c4 {[%emt 0:00:00]} g6 {[%emt 0:01:07]} 3. g3 {[%emt 0:00:51]} Bg7 {[%emt 0:00:10]} 4. Bg2 {[%emt 0:00:08]} d6 {[%emt 0:00:15]} 5. Nf3 {[%emt 0:00:07]} O-O {[%emt 0:00:08]} 6. O-O {[%emt 0:00:10]} Nbd7 {[%emt 0:00:32]} 7. Nc3 {[%emt 0:00:08]} e5 {[%emt 0:00:03]} 8. b3 {[%emt 0:00:04]} Re8 {[%emt 0:00:48]} 9. e4 {[%emt 0:02:06]} exd4 {[%emt 0:00:27]} 10. Nxd4 {[%emt 0:00:29]} Nc5 {[%emt 0:00:35]} 11. f3 {[%emt 0:02:21]} a5 {[%emt 0:00:20]} 12. Be3 {[%emt 0:01:43]} h6 {[%emt 0:03:39]} 13. Qd2 {[%emt 0:01:31]} Kh7 {[%emt 0:00:24]} 14. Rad1 {[%emt 0:01:57]} Nfd7 {[%emt 0:04:09]} 15. h3 {[%emt 0:04:37]} c6 {[%emt 0:08:59]} 16. Rfe1 {[%emt 0:08:54]} Qb6 {[%emt 0:11:18]} 17. f4 {[%emt 0:07:10]} a4 {[%emt 0:04:57]} 18. Rb1 {[%emt 0:17:07]} axb3 {[%emt 0:02:58]} 19. axb3 {[%emt 0:01:04]} Qb4 {[%emt 0:00:54]} 20. e5 {[%emt 0:13:46]} dxe5 {[%emt 0:19:10]} 21. Nc2 {[%emt 0:00:14]} Qb6 {[%emt 0:00:20]} 22. f5 {[%emt 0:10:44]} Qc7 {[%emt 0:02:28]} 23. b4 {[%emt 0:03:15]} Na4 {[%emt 0:04:15]} 24. fxg6+ {[%emt 0:04:57]} fxg6 {[%emt 0:00:12]} 25. Ne4 {[%emt 0:00:05]} Ndb6 {[%emt 0:01:44]} 26. Na3 {[%emt 0:04:23]} Be6 {[%emt 0:00:20]} 27. Qc2 {[%emt 0:00:33]} Nd7 {[%emt 0:11:51]} 28. Red1 {[%emt 0:03:22]} Nf8 {[%emt 0:05:59]} 29. Ra1 {[%emt 0:01:30]} Nb6 {[%emt 0:00:38]} 30. Bc5 {[%emt 0:02:25]} Red8 {[%emt 0:03:44]} 31. Rf1 {[%emt 0:04:04]} Kh8 {[%emt 0:05:03]} 32. g4 {[%emt 0:01:52]} Bg8 {[%emt 0:00:13]} 33. Be3 {[%emt 0:02:23]} Ne6 {[%emt 0:00:20]} 34. Qf2 {[%emt 0:01:38]} Nd4 {[%emt 0:00:47]} 35. Qh4 {[%emt 0:00:16]} Ne2+ {[%emt 0:00:52]} 36. Kh1 {[%emt 0:01:16]} Nf4 {[%emt 0:00:20]} 37. Bf3 {[%emt 0:00:21]} Nxc4 {[%emt 0:00:25]} 38. Nxc4 {[%emt 0:00:05]} Bxc4 {[%emt 0:00:23]} 39. Rxa8 {[%emt 0:00:15]} Rxa8 {[%emt 0:00:06]} 40. Rd1 {[%emt 0:00:02]} Bd5 {[%emt 0:01:22]} 41. b5 {[%emt 0:01:29]} Ra3 {[%emt 0:00:15]} 42. Qf2 {[%emt 0:00:01]} Nxh3 {[%emt 0:00:42]} 43. Qd2 {[%emt 0:00:02]} Qf7 {[%emt 0:03:33]} 44. Bg2 {[%emt 0:01:29]} Ra2 {[%emt 0:00:34]} 45. Qd3 {[%emt 0:00:02]} Nf4 {[%emt 0:01:08]} 46. Bxf4 {[%emt 0:00:13]} Qxf4 {[%emt 0:00:24]} 47. Rf1 {[%emt 0:01:49]} Qxg4 {[%emt 0:00:47]} 0-1

[Event "Portugal Open 2019"]
[Site "Lisbon"]
[Date "2019.02.03"]
[Round "3.26"]
[White "Terrieux, Kevin"]
[Black "Nordquelle, Daniel"]
[Result "1-0"]
[ECO "D05"]
[WhiteElo "2459"]
[BlackElo "2235"]
[Annotator "RC"]
[PlyCount "53"]
[EventDate "2019.01.25"]
[EventType "swiss"]
[EventCountry "POR"]
[SourceTitle "playchess.com"]
[Source "ChessBase"]
[SourceQuality "1"]
[TimeControl "5400+30"]

1. d4 {[%emt 0:00:51]} d5 {[%emt 0:06:52]} 2. Nf3 {[%emt 0:02:46]} e6 {[%emt 0:00:21]} 3. e3 {[%emt 0:01:09]} Nf6 {[%emt 0:00:34]} 4. Bd3 {[%emt 0:00:09]} Be7 {[%emt 0:01:16]} 5. O-O {[%emt 0:01:06]} O-O {[%emt 0:00:24]} 6. b3 {[%emt 0:00:15]} b6 {[%emt 0:01:06]} 7. Bb2 {[%emt 0:00:18]} Bb7 {[%emt 0:00:10]} 8. Nbd2 {[%emt 0:00:49]} Nbd7 {[%emt 0:03:40]} 9. c4 {[%emt 0:08:29]} c5 {[%emt 0:00:56]} 10. cxd5 {[%emt 0:01:04]} Nxd5 {[%emt 0:00:31]} 11. Rc1 {[%emt 0:05:05]} Rc8 {[%emt 0:01:49]} 12. Qe2 {[%emt 0:04:31]} cxd4 {[%emt 0:00:50]} 13. Nxd4 {[%emt 0:00:55]} Nc5 {[%emt 0:09:04]} 14. Bb1 {[%emt 0:00:50]} Ba6 {[%emt 0:01:44]} 15. Nc4 {[%emt 0:00:46]} b5 {[%emt 0:05:51]} 16. Nd2 {[%emt 0:02:16]} b4 {[%emt 0:00:34]} 17. Nc4 {[%emt 0:00:16]} Bf6 {[%emt 0:03:04]} 18. Rfd1 {[%emt 0:00:44]} Qe7 {[%emt 0:00:59]} 19. Nf5 {[%emt 0:09:22]} Qc7 {[%emt 0:01:24]} 20. Rxd5 {[%emt 0:03:01]} Bxb2 {[%emt 0:25:03]} 21. Qxb2 {[%emt 0:01:12]} exf5 {[%emt 0:00:07]} 22. Nd6 {[%emt 0:11:10]} Rfd8 {[%emt 0:13:29]} 23. Qd4 {[%emt 0:02:09]} Nxb3 {[%emt 0:03:01]} 24. Rxc7 {[%emt 0:00:58]} Nxd4 {[%emt 0:00:19]} 25. Nxc8 {[%emt 0:00:18]} Ne2+ {[%emt 0:00:20]} 26. Kh1 {[%emt 0:00:08]} Rxd5 {[%emt 0:01:28]} 27. Ne7+ {[%emt 0:00:09]} 1-0

[Event "Portugal Open 2019"]
[Site "Lisbon"]
[Date "2019.02.03"]
[Round "3.30"]
[White "Martin Duque, Jesus"]
[Black "Hill, Alistair"]
[Result "1-0"]
[ECO "B33"]
[WhiteElo "2393"]
[BlackElo "2152"]
[Annotator "NA RC"]
[PlyCount "91"]
[EventDate "2019.01.25"]
[EventType "swiss"]
[EventCountry "POR"]
[SourceTitle "playchess.com"]
[Source "ChessBase"]
[SourceQuality "1"]
[TimeControl "5400+30"]

1. e4 {[%emt 0:04:54]} c5 {[%emt 0:00:00]} 2. Nf3 {[%emt 0:00:03]} Nc6 {[%emt 0:00:00]} 3. d4 {[%emt 0:00:02]} cxd4 {[%emt 0:00:00]} 4. Nxd4 {[%emt 0:00:02]} Nf6 {[%emt 0:00:00]} 5. Nc3 {[%emt 0:00:02]} e5 {[%emt 0:00:00]} 6. Ndb5 {[%emt 0:00:02]} d6 {[%emt 0:00:00]} 7. Bg5 {[%emt 0:00:03]} a6 {[%emt 0:00:03]} 8. Na3 {[%emt 0:00:02]} ({Predecessor:} 8. Bxf6 gxf6 9. Na3 {0-1 (35) Djingarova,E (2030)-Vijayalakshmi,S Szeged 1994}) 8... b5 {[%emt 0:00:03]} 9. Bxf6 {[%emt 0:00:03]} gxf6 {[%emt 0:00:05]} 10. Nd5 {[%emt 0:00:02]} f5 {[%emt 0:00:06]} 11. Bd3 {[%emt 0:00:06]} Be6 {[%emt 0:00:41]} 12. c3 $146 {[%emt 0:00:11]} (12. O-O Bxd5 13. exd5 Ne7 14. Re1 Bg7 {½-½ (41) Topalov,V (2749)-Mamedov,R (2704) Shamkir 2018}) 12... Bg7 {[%emt 0:01:35]} 13. O-O {[%emt 0:00:07]} Bxd5 {[%emt 0:01:53]} 14. exd5 {[%emt 0:00:04]} Ne7 {[%emt 0:00:05]} 15. Re1 {[%emt 0:00:07] B33: Sicilian: Pelikan and Sveshnikov Variations} O-O {[%emt 0:23:46]} 16. Nc2 {[%emt 0:00:02]} e4 {[%emt 0:00:25]} (16... Re8 17. Qh5 e4 18. Bf1 Nxd5 19. Qxf5 Re5 20. Qh3 Qb6 21. Rad1 Rae8 22. Rxe4 Rxe4 23. Rxd5 {½-½ (41) Topalov,V (2749)-Mamedov,R (2704) Shamkir 2018}) 17. Bf1 {[%emt 0:00:03]} Ng6 {[%emt 0:05:24]} 18. Qh5 {[%emt 0:10:32]} Qd7 {[%emt 0:13:15]} (18... Qf6 $14) 19. g3 {[%emt 0:14:35]} ({Predecessor:} 19. Rad1 Rae8 20. Nd4 Bxd4 21. Rxd4 Re5 22. Qh3 Qe7 {0-1 (35) Djingarova,E (2030)-Vijayalakshmi,S Szeged 1994}) 19... Rfe8 {[%emt 0:09:54]} 20. Bh3 {[%emt 0:05:04]} Re5 {[%emt 0:00:03]} 21. Ne3 {[%emt 0:14:01]} Ne7 {[%emt 0:01:38]} 22. a4 {[%emt 0:02:41]} h6 {[%emt 0:17:32]} 23. axb5 {[%emt 0:03:42]} Qxb5 {[%emt 0:00:02]} 24. Qe2 {[%emt 0:02:53]} Qc5 {[%emt 0:11:12]} 25. Rxa6 {[%emt 0:11:58]} Rxa6 {[%emt 0:00:32]} 26. Qxa6 {[%emt 0:00:03]} Nxd5 {[%emt 0:01:42]} 27. Qa8+ {[%emt 0:01:10]} Bf8 {[%emt 0:02:09]} 28. Nxf5 {[%emt 0:13:51]} e3 {[%emt 0:01:57]} 29. f4 {[%emt 0:00:51]} Rxf5 {[%emt 0:01:13]} 30. Bxf5 {[%emt 0:00:03]} e2+ {[%emt 0:00:03]} 31. Kg2 $1 {[%emt 0:00:44]} Ne3+ {[%emt 0:00:13]} 32. Kh1 {[%emt 0:00:17]} Qxf5 {[%emt 0:03:57]} 33. Qf3 {[%emt 0:00:31]} Nc4 {[%emt 0:03:55]} 34. Rxe2 {[%emt 0:01:22]} d5 {[%emt 0:00:38]} 35. Kg2 {[%emt 0:01:38]} Bg7 {[%emt 0:01:14]} 36. g4 {[%emt 0:04:09]} Qd7 {[%emt 0:00:35]} 37. h3 {[%emt 0:00:23]} Qb5 {[%emt 0:00:31]} 38. Qd3 {[%emt 0:01:39]} Qc6 {[%emt 0:01:10]} 39. Kh2 {[%emt 0:00:38]} Nb6 {[%emt 0:00:54]} 40. Qf5 {[%emt 0:02:19]} Qb5 {[%emt 0:00:38]} 41. Rg2 $11 {[%emt 0:01:21]} Qf1 {[%emt 0:00:21]} 42. g5 {[%emt 0:00:36]} Nc4 {[%emt 0:00:31]} 43. Qc8+ {[%emt 0:03:47]} Kh7 {[%emt 0:00:02]} 44. Qg4 {[%emt 0:00:32]} hxg5 {[%emt 0:01:08]} 45. Qxg5 {[%emt 0:00:33]} Bf8 {[%emt 0:00:53]} 46. Qg8+ {[%emt 0:00:06]} 1-0

[Event "Portugal Open 2019"]
[Site "Lisbon"]
[Date "2019.02.03"]
[Round "3.31"]
[White "Low, Zhen Yu Cyrus"]
[Black "Pirola, Claudionor Alcides "]
[Result "1-0"]
[ECO "C58"]
[WhiteElo "2377"]
[BlackElo "2113"]
[Annotator "NA RC"]
[PlyCount "56"]
[EventDate "2019.01.25"]
[EventType "swiss"]
[EventCountry "POR"]
[SourceTitle "playchess.com"]
[Source "ChessBase"]
[SourceQuality "1"]
[TimeControl "5400+30"]

1. e4 {[%emt 0:00:00]} e5 {[%emt 0:01:21]} 2. Nf3 {[%emt 0:00:00]} Nc6 {[%emt 0:00:05]} 3. Bc4 {[%emt 0:00:00]} Nf6 {[%emt 0:00:06]} 4. Ng5 {[%emt 0:00:00]} d5 {[%emt 0:00:21]} 5. exd5 {[%emt 0:00:00]} Na5 {[%emt 0:00:05]} 6. Bb5+ {[%emt 0:00:04]} c6 {[%emt 0:00:27]} 7. dxc6 {[%emt 0:00:01]} bxc6 {[%emt 0:00:08]} 8. Bd3 {[%emt 0:00:05]} Nd5 {[%emt 0:00:08] C58: Two Knights: 4 Ng5 d5 5 exd5 Na5 sidelines} 9. Nf3 {[%emt 0:00:04]} Nf4 $146 {[%emt 0:00:26]} ({Predecessor:} 9... Bd6 10. O-O Nf4 11. Nc3 (11. Re1 Nxd3 {1-0 (34) Bortnyk,O (2553)-Sanal,V (2510) Kocaeli 2015}) 11... Nxd3 12. cxd3 O-O 13. Ne4 Ba6 14. Re1 Bc7 15. b4 Nb7 16. Bb2 {½-½ (112) Wang,H (2730)-Tari,A (2620) St Petersburg 2018}) 10. O-O {[%emt 0:00:02]} Nxd3 {[%emt 0:00:11]} 11. cxd3 {[%emt 0:00:01]} Bd6 {[%emt 0:00:12]} 12. Re1 {[%emt 0:00:05]} O-O {[%emt 0:00:07]} 13. Nc3 {[%emt 0:00:04]} ({Predecessor:} 13. b3 f6 14. Nc3 {1-0 (34) Bortnyk,O (2553)-Sanal,V (2510) Kocaeli 2015}) 13... c5 {[%emt 0:03:35]} 14. b3 {[%emt 0:01:01]} f6 {[%emt 0:03:11]} 15. Ne4 {[%emt 0:02:55]} Ba6 {[%emt 0:03:57]} 16. Ba3 {[%emt 0:00:10]} Nb7 {[%emt 0:04:12]} (16... Bxd3 $11 {keeps the balance.} 17. Nxc5 Bxc5 18. Bxc5 Rf7) 17. Qc2 Rc8 {[%emt 0:07:57]} 18. Rac1 {[%emt 0:13:34]} Qb6 {[%emt 0:20:52]} 19. b4 {[%emt 0:16:11]} (19. Nxd6 $16 Nxd6 20. Bxc5 Bxd3 21. Bxb6 Rxc2 22. Rxc2 (22. Bxa7 Rxa2 23. Rc3 Rxa7 $11) 22... Bxc2 23. Bc5 (23. Bxa7 Ra8 $16)) 19... cxb4 {[%emt 0:04:33]} 20. Qb3+ {[%emt 0:00:21]} Kh8 {[%emt 0:00:25]} 21. Nxd6 {[%emt 0:00:44]} Nxd6 {[%emt 0:01:03]} 22. Qxb4 {[%emt 0:01:53]} Qxb4 {[%emt 0:04:45]} 23. Bxb4 {[%emt 0:00:18]} Rfd8 {[%emt 0:00:25]} 24. Rxc8 {[%emt 0:03:44]} Nxc8 {[%emt 0:02:37]} 25. d4 $1 {[%emt 0:00:54]} exd4 $16 {[%emt 0:10:35]} 26. Nxd4 {[%emt 0:01:45]} Kg8 {[%emt 0:00:01]} 27. Nc6 {[%emt 0:15:10]} Rd7 {[%emt 0:00:01]} 28. Nb8 {[%emt 0:00:32]} Rc7 {[%emt 0:00:59]} 1-0

[Event "Portugal Open 2019"]
[Site "Lisbon"]
[Date "2019.02.03"]
[Round "3.32"]
[White "Tryggestad, Andreas Garberg"]
[Black "Leao, Tiago Miguel Da Sil"]
[Result "1/2-1/2"]
[ECO "D43"]
[WhiteElo "2351"]
[BlackElo "2084"]
[Annotator "NA RC"]
[PlyCount "86"]
[EventDate "2019.01.25"]
[EventType "swiss"]
[EventCountry "POR"]
[SourceTitle "playchess.com"]
[Source "ChessBase"]
[SourceQuality "1"]
[TimeControl "5400+30"]

1. d4 {[%emt 0:00:00]} Nf6 {[%emt 0:01:07]} 2. c4 {[%emt 0:00:00]} e6 {[%emt 0:01:16]} 3. Nf3 {[%emt 0:00:01]} d5 {[%emt 0:00:04]} 4. Nc3 {[%emt 0:00:04]} c6 {[%emt 0:01:07]} 5. g3 {[%emt 0:00:08]} Bd6 {[%emt 0:02:20]} 6. Bg2 {[%emt 0:00:10]} O-O {[%emt 0:00:16]} 7. O-O {[%emt 0:00:06]} Nbd7 {[%emt 0:00:22]} 8. Qd3 {[%emt 0:02:13]} h6 {[%emt 0:09:12]} 9. b3 {[%emt 0:04:40]} Qe7 {[%emt 0:04:35]} 10. e4 {[%emt 0:02:17]} dxe4 {[%emt 0:07:03]} 11. Nxe4 {[%emt 0:00:03]} e5 {[%emt 0:00:57]} ({Black should try} 11... Nxe4 $14 12. Qxe4 e5) 12. dxe5 {[%emt 0:02:50]} Bxe5 {[%emt 0:02:07]} 13. Nxe5 {[%emt 0:00:48]} Nxe5 {[%emt 0:00:30]} 14. Qd6 {[%emt 0:01:34]} Qxd6 {[%emt 0:09:30]} 15. Nxd6 {[%emt 0:00:02]} Rd8 {[%emt 0:02:28]} 16. Nxc8 {[%emt 0:00:39]} Raxc8 {[%emt 0:00:29]} 17. Be3 {[%emt 0:03:25]} Nfg4 {[%emt 0:11:11]} (17... b6 $14) 18. Bxa7 {[%emt 0:00:44]} Ra8 {[%emt 0:01:38]} 19. Bb6 {[%emt 0:03:58]} Rd2 {[%emt 0:03:24]} 20. h3 {[%emt 0:04:56]} Nd7 {[%emt 0:03:06]} 21. Bc7 {[%emt 0:01:15]} Ngf6 {[%emt 0:04:49]} 22. a4 {[%emt 0:13:43]} Nc5 {[%emt 0:03:26]} 23. b4 {[%emt 0:00:35]} Ne6 {[%emt 0:08:46]} 24. Bb6 {[%emt 0:14:21]} Rc2 {[%emt 0:00:56]} 25. c5 {[%emt 0:02:46]} Nd4 {[%emt 0:01:10]} 26. Rfd1 {[%emt 0:06:27]} Ne2+ {[%emt 0:02:42]} 27. Kf1 {[%emt 0:00:37]} Nc3 {[%emt 0:00:20]} 28. Rdc1 {[%emt 0:11:11]} ({White should try} 28. Rac1 $14 Rxc1 29. Rxc1) 28... Rxa4 {[%emt 0:01:21]} 29. Bf3 {[%emt 0:02:00]} Rxa1 {[%emt 0:03:53]} 30. Rxa1 {[%emt 0:00:01]} Nfe4 {[%emt 0:00:07]} 31. Ra8+ {[%emt 0:01:54]} Kh7 {[%emt 0:00:05]} 32. Bxe4+ {[%emt 0:00:05]} Nxe4 {[%emt 0:00:03]} 33. Rb8 {[%emt 0:00:25]} Rxf2+ {[%emt 0:00:36]} 34. Ke1 {[%emt 0:00:08]} Rf6 {[%emt 0:08:06]} 35. Rxb7 {[%emt 0:05:52]} Nxg3 {[%emt 0:02:22]} 36. Bd8 {[%emt 0:01:46] [#]} Re6+ $1 {[%emt 0:01:12]} 37. Kf2 {[%emt 0:02:42]} Ne4+ {[%emt 0:00:55]} 38. Kf3 {[%emt 0:00:17]} Kg6 {[%emt 0:03:05]} 39. Rd7 {[%emt 0:00:55]} Nc3 {[%emt 0:00:45]} 40. Rd2 {[%emt 0:00:52]} (40. Rd6 $17 {was worth a try.}) 40... Kf5 {[%emt 0:00:58]} (40... f6 $19 41. Rd3 Nb5) 41. Rd7 {[%emt 0:00:06]} Kg6 $11 {[%emt 0:00:06]} (41... Re8 $17 42. Bb6 Rf8) 42. Rd2 {[%emt 0:00:27]} Kf5 {[%emt 0:00:09]} 43. Rd7 {[%emt 0:00:12]} Kg6 {[%emt 0:00:31]} 1/2-1/2